[Event "Titled Tuesday Blitz August 15 Late 2023"]
[White "petr577"]
[Black "Cooklev, Steven"]
[BlackFideId "2050552"]
[WhiteElo "2368"]
[BlackElo "2418"]
[Result "1-0"]
[Round "9"]
[TimeControl "180+1"]
[Date "2023.08.15"]
[WhiteClock "0:00:41"]
[BlackClock "0:00:00"]
[Board "90"]

1. e4 {[%clk 0:03:00]}  c5 {[%clk 0:02:58]} 2. d4 {[%clk 0:03:01]}  cxd4 {[%clk 0:02:54]} 3. Nf3 {[%clk 0:03:02]}  Nc6 {[%clk 0:02:54]} 4. Nxd4 {[%clk 0:03:01]}  e5 {[%clk 0:02:52]} 5. Nb5 {[%clk 0:03:01]}  d6 {[%clk 0:02:52]} 6. c4 {[%clk 0:02:59]}  Be6 {[%clk 0:02:52]} 7. N5c3 {[%clk 0:02:52]}  g6 {[%clk 0:02:50]} 8. Nd5 {[%clk 0:02:51]}  Bg7 {[%clk 0:02:48]} 9. Nbc3 {[%clk 0:02:51]}  Nf6 {[%clk 0:02:39]} 10. Bg5 {[%clk 0:02:50]}  h6 {[%clk 0:02:39]} 11. Bxf6 {[%clk 0:02:44]}  Bxf6 {[%clk 0:02:39]} 12. Be2 {[%clk 0:02:38]}  Bg7 {[%clk 0:02:32]} 13. O-O {[%clk 0:02:38]}  O-O {[%clk 0:02:31]} 14. Qd2 {[%clk 0:02:31]}  Rc8 {[%clk 0:02:27]} 15. Rac1 {[%clk 0:02:21]}  Nd4 {[%clk 0:02:27]} 16. b3 {[%clk 0:02:18]}  a6 {[%clk 0:02:05]} 17. Rfe1 {[%clk 0:02:12]}  f5 {[%clk 0:02:01]} 18. exf5 {[%clk 0:02:09]}  gxf5 {[%clk 0:02:02]} 19. f4 {[%clk 0:02:04]}  e4 {[%clk 0:02:00]} 20. Ne3 {[%clk 0:01:44]}  Qa5 {[%clk 0:01:46]} 21. Red1 {[%clk 0:01:43]}  Kh8 {[%clk 0:01:34]} 22. Bf1 {[%clk 0:01:42]}  Bf7 {[%clk 0:01:13]} 23. Nxe4 {[%clk 0:01:11]}  Qb6 {[%clk 0:00:45]} 24. Nf2 {[%clk 0:01:06]}  Bh5 {[%clk 0:00:43]} 25. Re1 {[%clk 0:01:03]}  Rg8 {[%clk 0:00:26]} 26. Kh1 {[%clk 0:00:58]}  Nf3 {[%clk 0:00:25]} 27. gxf3 {[%clk 0:00:56]}  Bxf3+ {[%clk 0:00:24]} 28. Bg2 {[%clk 0:00:55]}  Qc6 {[%clk 0:00:22]} 29. Rg1 {[%clk 0:00:48]}  Bxg2+ {[%clk 0:00:12]} 30. Rxg2 {[%clk 0:00:47]}  Bf6 {[%clk 0:00:09]} 31. Rg1 {[%clk 0:00:43]}  h5 {[%clk 0:00:06]} 32. Nd5 {[%clk 0:00:41]}  Rxg2 {[%clk 0:00:00]} 33. Rxg2 {[%clk 0:00:41]} 1-0


[Site "https://www.chess.com"]

[Event "Titled Tuesday Blitz August 15 Late 2023"]
[White "financieru"]
[Black "Saucey, Michel"]
[BlackFideId "601845"]
[WhiteElo "2410"]
[BlackElo "2273"]
[Result "1-0"]
[Round "9"]
[TimeControl "180+1"]
[Date "2023.08.15"]
[WhiteClock "0:00:12"]
[BlackClock "0:00:00"]
[Board "92"]

1. d4 {[%clk 0:02:59]}  d5 {[%clk 0:02:59]} 2. c4 {[%clk 0:02:59]}  e6 {[%clk 0:02:58]} 3. Nf3 {[%clk 0:03:00]}  Nf6 {[%clk 0:02:57]} 4. Nc3 {[%clk 0:03:00]}  Bb4 {[%clk 0:02:56]} 5. Bg5 {[%clk 0:02:55]}  h6 {[%clk 0:02:56]} 6. Bh4 {[%clk 0:02:53]}  dxc4 {[%clk 0:02:56]} 7. e3 {[%clk 0:02:48]}  b5 {[%clk 0:02:54]} 8. Be2 {[%clk 0:02:46]}  Bb7 {[%clk 0:02:53]} 9. O-O {[%clk 0:02:46]}  a6 {[%clk 0:02:51]} 10. a4 {[%clk 0:02:46]}  Nbd7 {[%clk 0:02:48]} 11. Qc2 {[%clk 0:02:40]}  c6 {[%clk 0:02:43]} 12. Rad1 {[%clk 0:02:38]}  Qb6 {[%clk 0:02:35]} 13. e4 {[%clk 0:02:35]}  g5 {[%clk 0:02:21]} 14. Bg3 {[%clk 0:02:33]}  Nh5 {[%clk 0:02:21]} 15. Be5 {[%clk 0:02:26]}  f6 {[%clk 0:02:12]} 16. Bg3 {[%clk 0:02:21]}  O-O-O {[%clk 0:02:06]} 17. b3 {[%clk 0:02:06]}  cxb3 {[%clk 0:01:46]} 18. Qxb3 {[%clk 0:02:06]}  Qa5 {[%clk 0:01:44]} 19. axb5 {[%clk 0:01:51]}  Nxg3 {[%clk 0:01:21]} 20. hxg3 {[%clk 0:01:51]}  Qa3 {[%clk 0:00:52]} 21. Qxa3 {[%clk 0:00:58]}  Bxa3 {[%clk 0:00:51]} 22. bxc6 {[%clk 0:00:54]}  Bxc6 {[%clk 0:00:51]} 23. Bxa6+ {[%clk 0:00:54]}  Kc7 {[%clk 0:00:49]} 24. Bc4 {[%clk 0:00:50]}  Rhe8 {[%clk 0:00:41]} 25. d5 {[%clk 0:00:46]}  Nb6 {[%clk 0:00:33]} 26. Bb3 {[%clk 0:00:31]}  exd5 {[%clk 0:00:27]} 27. Nxd5+ {[%clk 0:00:31]}  Bxd5 {[%clk 0:00:23]} 28. Bxd5 {[%clk 0:00:30]}  Nxd5 {[%clk 0:00:23]} 29. exd5 {[%clk 0:00:30]}  Bc5 {[%clk 0:00:20]} 30. g4 {[%clk 0:00:28]}  Kd6 {[%clk 0:00:19]} 31. Kh2 {[%clk 0:00:25]}  Re4 {[%clk 0:00:18]} 32. Kg3 {[%clk 0:00:23]}  Rb8 {[%clk 0:00:16]} 33. Rd2 {[%clk 0:00:21]}  Rbb4 {[%clk 0:00:15]} 34. Nh2 {[%clk 0:00:19]}  Rbd4 {[%clk 0:00:10]} 35. Rfd1 {[%clk 0:00:17]}  Rxd2 {[%clk 0:00:10]} 36. Rxd2 {[%clk 0:00:17]}  Rd4 {[%clk 0:00:10]} 37. Rxd4 {[%clk 0:00:12]}  Bxd4 {[%clk 0:00:10]} 38. f3 {[%clk 0:00:11]}  Kxd5 {[%clk 0:00:10]} 39. Nf1 {[%clk 0:00:12]}  Ke5 {[%clk 0:00:09]} 40. Nd2 {[%clk 0:00:10]}  Be3 {[%clk 0:00:09]} 41. Ne4 {[%clk 0:00:10]}  Bf4+ {[%clk 0:00:08]} 42. Kf2 {[%clk 0:00:10]}  f5 {[%clk 0:00:07]} 43. gxf5 {[%clk 0:00:11]}  Kxf5 {[%clk 0:00:07]} 44. g4+ {[%clk 0:00:11]}  Kg6 {[%clk 0:00:07]} 45. Ke2 {[%clk 0:00:11]}  Be5 {[%clk 0:00:06]} 46. Kd3 {[%clk 0:00:10]}  Bf4 {[%clk 0:00:07]} 47. Kd4 {[%clk 0:00:10]}  h5 {[%clk 0:00:07]} 48. gxh5+ {[%clk 0:00:09]}  Kxh5 {[%clk 0:00:07]} 49. Nf6+ {[%clk 0:00:08]}  Kh4 {[%clk 0:00:06]} 50. Ng4 {[%clk 0:00:09]}  Kg3 {[%clk 0:00:06]} 51. Ke4 {[%clk 0:00:10]}  Kg2 {[%clk 0:00:06]} 52. Nf6 {[%clk 0:00:10]}  Kg3 {[%clk 0:00:06]} 53. Nd5 {[%clk 0:00:10]}  Bc1 {[%clk 0:00:05]} 54. Nf6 {[%clk 0:00:10]}  Bf4 {[%clk 0:00:05]} 55. Nh5+ {[%clk 0:00:11]}  Kh4 {[%clk 0:00:02]} 56. Nxf4 {[%clk 0:00:11]}  gxf4 {[%clk 0:00:02]} 57. Kxf4 {[%clk 0:00:12]}  Kh5 {[%clk 0:00:00]} 58. Kf5 {[%clk 0:00:12]} 1-0


[Site "https://www.chess.com"]

[Event "Titled Tuesday Blitz August 15 Late 2023"]
[White "Wafa, Shrook"]
[Black "De Souza, Cristiano Gomes"]
[WhiteFideId "10609970"]
[BlackFideId "2151758"]
[WhiteElo "2407"]
[BlackElo "2263"]
[Result "1-0"]
[Round "9"]
[TimeControl "180+1"]
[Date "2023.08.15"]
[WhiteClock "0:00:21"]
[BlackClock "0:00:00"]
[Board "93"]

1. e4 {[%clk 0:02:59]}  c5 {[%clk 0:02:44]} 2. Nf3 {[%clk 0:02:59]}  d6 {[%clk 0:02:42]} 3. d4 {[%clk 0:02:58]}  cxd4 {[%clk 0:02:41]} 4. Nxd4 {[%clk 0:02:59]}  Nf6 {[%clk 0:02:41]} 5. Bd3 {[%clk 0:02:58]}  g6 {[%clk 0:02:41]} 6. O-O {[%clk 0:02:58]}  Bg7 {[%clk 0:02:42]} 7. c4 {[%clk 0:02:57]}  O-O {[%clk 0:02:41]} 8. Nc3 {[%clk 0:02:57]}  Nc6 {[%clk 0:02:41]} 9. Nxc6 {[%clk 0:02:57]}  bxc6 {[%clk 0:02:41]} 10. h3 {[%clk 0:02:57]}  Be6 {[%clk 0:02:41]} 11. Be3 {[%clk 0:02:56]}  Nd7 {[%clk 0:02:40]} 12. Rc1 {[%clk 0:02:56]}  Ne5 {[%clk 0:02:38]} 13. Be2 {[%clk 0:02:55]}  Bxc4 {[%clk 0:02:34]} 14. Bd4 {[%clk 0:02:51]}  Bxe2 {[%clk 0:02:33]} 15. Qxe2 {[%clk 0:02:51]}  c5 {[%clk 0:02:30]} 16. Be3 {[%clk 0:02:50]}  Nc6 {[%clk 0:02:28]} 17. Rfd1 {[%clk 0:02:50]}  Nd4 {[%clk 0:02:27]} 18. Bxd4 {[%clk 0:02:34]}  Bxd4 {[%clk 0:02:26]} 19. Nb5 {[%clk 0:02:31]}  Bg7 {[%clk 0:02:24]} 20. Rxc5 {[%clk 0:02:29]}  Qb6 {[%clk 0:02:19]} 21. Rc2 {[%clk 0:02:25]}  Rfc8 {[%clk 0:02:09]} 22. Rdc1 {[%clk 0:02:15]}  Rxc2 {[%clk 0:02:05]} 23. Rxc2 {[%clk 0:02:15]}  Rb8 {[%clk 0:02:04]} 24. Na3 {[%clk 0:02:15]}  h6 {[%clk 0:01:57]} 25. Nc4 {[%clk 0:02:15]}  Qa6 {[%clk 0:01:55]} 26. b3 {[%clk 0:02:14]}  Rc8 {[%clk 0:01:46]} 27. Qd2 {[%clk 0:02:11]}  Rc5 {[%clk 0:01:41]} 28. Ne3 {[%clk 0:02:10]}  Rxc2 {[%clk 0:01:39]} 29. Qxc2 {[%clk 0:02:10]}  e6 {[%clk 0:01:34]} 30. Qc7 {[%clk 0:02:04]}  Qxa2 {[%clk 0:01:30]} 31. Qxd6 {[%clk 0:01:53]}  Qxb3 {[%clk 0:01:29]} 32. Qd8+ {[%clk 0:01:51]}  Kh7 {[%clk 0:01:28]} 33. Qd7 {[%clk 0:01:46]}  f5 {[%clk 0:01:08]} 34. exf5 {[%clk 0:01:42]}  exf5 {[%clk 0:01:08]} 35. Qxa7 {[%clk 0:01:40]}  f4 {[%clk 0:01:02]} 36. Ng4 {[%clk 0:01:37]}  Qe6 {[%clk 0:00:50]} 37. Qc7 {[%clk 0:01:25]}  h5 {[%clk 0:00:47]} 38. Nh2 {[%clk 0:01:20]}  g5 {[%clk 0:00:37]} 39. Nf3 {[%clk 0:01:17]}  Kg6 {[%clk 0:00:33]} 40. Qc2+ {[%clk 0:01:16]}  Qf5 {[%clk 0:00:29]} 41. Qc6+ {[%clk 0:01:16]}  Bf6 {[%clk 0:00:26]} 42. Qe8+ {[%clk 0:01:14]}  Kh6 {[%clk 0:00:24]} 43. Qf8+ {[%clk 0:01:13]}  Kg6 {[%clk 0:00:24]} 44. Qb8 {[%clk 0:01:03]}  g4 {[%clk 0:00:20]} 45. Qg8+ {[%clk 0:01:00]}  Kh6 {[%clk 0:00:16]} 46. Qf8+ {[%clk 0:00:59]}  Kg6 {[%clk 0:00:15]} 47. hxg4 {[%clk 0:00:52]}  hxg4 {[%clk 0:00:15]} 48. Nh2 {[%clk 0:00:51]}  Bg5 {[%clk 0:00:14]} 49. Qe8+ {[%clk 0:00:46]}  Kh6 {[%clk 0:00:14]} 50. Qh8+ {[%clk 0:00:45]}  Kg6 {[%clk 0:00:14]} 51. Qa1 {[%clk 0:00:43]}  f3 {[%clk 0:00:11]} 52. Qa6+ {[%clk 0:00:40]}  Kh5 {[%clk 0:00:11]} 53. gxf3 {[%clk 0:00:35]}  gxf3 {[%clk 0:00:10]} 54. Qc6 {[%clk 0:00:33]}  Qf4 {[%clk 0:00:01]} 55. Qxf3+ {[%clk 0:00:31]}  Qxf3 {[%clk 0:00:02]} 56. Nxf3 {[%clk 0:00:31]}  Bf4 {[%clk 0:00:02]} 57. Nd4 {[%clk 0:00:28]}  Kg4 {[%clk 0:00:02]} 58. Kg2 {[%clk 0:00:28]}  Bb8 {[%clk 0:00:02]} 59. f3+ {[%clk 0:00:26]}  Kf4 {[%clk 0:00:03]} 60. Ne2+ {[%clk 0:00:22]}  Kf5 {[%clk 0:00:03]} 61. Kf2 {[%clk 0:00:22]}  Kg5 {[%clk 0:00:03]} 62. Ke3 {[%clk 0:00:22]}  Ba7+ {[%clk 0:00:03]} 63. Ke4 {[%clk 0:00:22]}  Kf6 {[%clk 0:00:03]} 64. f4 {[%clk 0:00:21]}  Bb8 {[%clk 0:00:02]} 65. f5 {[%clk 0:00:22]}  Bc7 {[%clk 0:00:02]} 66. Nd4 {[%clk 0:00:22]}  Bb6 {[%clk 0:00:02]} 67. Ne6 {[%clk 0:00:22]}  Ba7 {[%clk 0:00:01]} 68. Nf4 {[%clk 0:00:22]}  Bb8 {[%clk 0:00:02]} 69. Nd5+ {[%clk 0:00:22]}  Kg5 {[%clk 0:00:00]} 70. Nb6 {[%clk 0:00:21]} 1-0


[Site "https://www.chess.com"]

[Event "Titled Tuesday Blitz August 15 Late 2023"]
[White "Alexikov, Alexander"]
[Black "Melikhov, Evgeny V."]
[WhiteFideId "14103958"]
[BlackFideId "4122046"]
[WhiteElo "2230"]
[BlackElo "2405"]
[Result "1-0"]
[Round "9"]
[TimeControl "180+1"]
[Date "2023.08.15"]
[WhiteClock "0:00:33"]
[BlackClock "0:00:10"]
[Board "94"]

1. e4 {[%clk 0:03:00]}  c5 {[%clk 0:02:58]} 2. Nf3 {[%clk 0:03:00]}  d6 {[%clk 0:02:58]} 3. d4 {[%clk 0:03:00]}  cxd4 {[%clk 0:02:58]} 4. Nxd4 {[%clk 0:03:00]}  Nf6 {[%clk 0:02:58]} 5. Nc3 {[%clk 0:03:01]}  a6 {[%clk 0:02:59]} 6. Be2 {[%clk 0:03:00]}  e6 {[%clk 0:02:58]} 7. a4 {[%clk 0:02:50]}  Nc6 {[%clk 0:02:58]} 8. Be3 {[%clk 0:02:49]}  Be7 {[%clk 0:02:57]} 9. O-O {[%clk 0:02:48]}  O-O {[%clk 0:02:57]} 10. Qe1 {[%clk 0:02:45]}  Qc7 {[%clk 0:02:36]} 11. Rd1 {[%clk 0:02:43]}  Re8 {[%clk 0:02:29]} 12. Kh1 {[%clk 0:02:42]}  Rb8 {[%clk 0:02:26]} 13. f4 {[%clk 0:02:39]}  b6 {[%clk 0:02:16]} 14. Qg3 {[%clk 0:02:38]}  Bf8 {[%clk 0:02:04]} 15. Nxc6 {[%clk 0:02:22]}  Qxc6 {[%clk 0:02:04]} 16. e5 {[%clk 0:02:22]}  dxe5 {[%clk 0:01:31]} 17. fxe5 {[%clk 0:02:20]}  Ne4 {[%clk 0:01:11]} 18. Qf3 {[%clk 0:02:10]}  Bb7 {[%clk 0:01:11]} 19. Qxf7+ {[%clk 0:02:03]}  Kh8 {[%clk 0:01:11]} 20. Bf3 {[%clk 0:02:00]}  Qc4 {[%clk 0:01:07]} 21. Bxe4 {[%clk 0:01:31]}  Bxe4 {[%clk 0:01:05]} 22. Rf4 {[%clk 0:01:31]}  Rbd8 {[%clk 0:00:59]} 23. Rdf1 {[%clk 0:01:29]}  Bc5 {[%clk 0:00:51]} 24. Rxe4 {[%clk 0:01:19]}  Qxe4 {[%clk 0:00:30]} 25. Nxe4 {[%clk 0:01:13]}  Rf8 {[%clk 0:00:31]} 26. Bxc5 {[%clk 0:00:54]}  Rxf7 {[%clk 0:00:29]} 27. Rxf7 {[%clk 0:00:53]}  Rd1+ {[%clk 0:00:28]} 28. Bg1 {[%clk 0:00:51]}  Kg8 {[%clk 0:00:28]} 29. Re7 {[%clk 0:00:48]}  Rc1 {[%clk 0:00:27]} 30. c3 {[%clk 0:00:46]}  Rc2 {[%clk 0:00:26]} 31. b4 {[%clk 0:00:44]}  b5 {[%clk 0:00:25]} 32. a5 {[%clk 0:00:42]}  h5 {[%clk 0:00:24]} 33. Rxe6 {[%clk 0:00:41]}  h4 {[%clk 0:00:24]} 34. Rxa6 {[%clk 0:00:39]}  h3 {[%clk 0:00:24]} 35. gxh3 {[%clk 0:00:39]}  Re2 {[%clk 0:00:24]} 36. Ng5 {[%clk 0:00:38]}  Kf8 {[%clk 0:00:21]} 37. Bc5+ {[%clk 0:00:36]}  Ke8 {[%clk 0:00:21]} 38. e6 {[%clk 0:00:34]}  Kd8 {[%clk 0:00:21]} 39. Bd6 {[%clk 0:00:34]}  Kc8 {[%clk 0:00:10]} 40. Rb6 {[%clk 0:00:33]} 1-0


[Site "https://www.chess.com"]

[Event "Titled Tuesday Blitz August 15 Late 2023"]
[White "Curtis, John"]
[Black "KorolDimitriy75"]
[WhiteFideId "3200256"]
[WhiteElo "2080"]
[BlackElo "2387"]
[Result "0-1"]
[Round "9"]
[TimeControl "180+1"]
[Date "2023.08.15"]
[WhiteClock "0:00:00"]
[BlackClock "0:00:03"]
[Board "95"]

1. e4 {[%clk 0:03:00]}  c5 {[%clk 0:03:00]} 2. Nf3 {[%clk 0:02:57]}  d6 {[%clk 0:03:00]} 3. d4 {[%clk 0:02:57]}  cxd4 {[%clk 0:03:01]} 4. Nxd4 {[%clk 0:02:57]}  Nf6 {[%clk 0:03:01]} 5. Nc3 {[%clk 0:02:55]}  g6 {[%clk 0:03:02]} 6. Bc4 {[%clk 0:02:54]}  Bg7 {[%clk 0:03:02]} 7. Bb3 {[%clk 0:02:54]}  O-O {[%clk 0:03:02]} 8. f3 {[%clk 0:02:55]}  Nc6 {[%clk 0:03:02]} 9. Be3 {[%clk 0:02:55]}  Bd7 {[%clk 0:03:02]} 10. Qd2 {[%clk 0:02:56]}  Qa5 {[%clk 0:03:02]} 11. O-O-O {[%clk 0:02:55]}  Rfc8 {[%clk 0:03:01]} 12. Kb1 {[%clk 0:02:55]}  Ne5 {[%clk 0:03:01]} 13. Nd5 {[%clk 0:02:49]}  Qxd2 {[%clk 0:02:59]} 14. Rxd2 {[%clk 0:02:43]}  Nxd5 {[%clk 0:02:58]} 15. Bxd5 {[%clk 0:02:43]}  Nc4 {[%clk 0:02:58]} 16. Bxc4 {[%clk 0:02:37]}  Rxc4 {[%clk 0:02:59]} 17. b3 {[%clk 0:02:32]}  Rc3 {[%clk 0:02:47]} 18. Rd3 {[%clk 0:02:32]}  Rac8 {[%clk 0:02:14]} 19. Rxc3 {[%clk 0:02:15]}  Rxc3 {[%clk 0:02:14]} 20. Bf2 {[%clk 0:02:12]}  a6 {[%clk 0:01:29]} 21. Rd1 {[%clk 0:02:09]}  f5 {[%clk 0:01:26]} 22. exf5 {[%clk 0:02:08]}  gxf5 {[%clk 0:01:24]} 23. f4 {[%clk 0:01:47]}  Kf7 {[%clk 0:01:15]} 24. Nf3 {[%clk 0:01:34]}  Bc6 {[%clk 0:00:56]} 25. Ng5+ {[%clk 0:01:23]}  Kg6 {[%clk 0:00:55]} 26. Ne6 {[%clk 0:00:48]}  Bf6 {[%clk 0:00:52]} 27. Bd4 {[%clk 0:00:37]}  Bxd4 {[%clk 0:00:43]} 28. Nxd4 {[%clk 0:00:37]}  Be4 {[%clk 0:00:29]} 29. Kb2 {[%clk 0:00:37]}  Re3 {[%clk 0:00:26]} 30. Rd2 {[%clk 0:00:19]}  Re1 {[%clk 0:00:19]} 31. b4 {[%clk 0:00:14]}  Kf6 {[%clk 0:00:18]} 32. Nb3 {[%clk 0:00:13]}  b6 {[%clk 0:00:16]} 33. g3 {[%clk 0:00:13]}  h5 {[%clk 0:00:14]} 34. a4 {[%clk 0:00:13]}  h4 {[%clk 0:00:14]} 35. a5 {[%clk 0:00:12]}  b5 {[%clk 0:00:12]} 36. Nd4 {[%clk 0:00:06]}  h3 {[%clk 0:00:10]} 37. Re2 {[%clk 0:00:03]}  Rg1 {[%clk 0:00:09]} 38. Rf2 {[%clk 0:00:03]}  Rg2 {[%clk 0:00:09]} 39. Re2 {[%clk 0:00:00]}  e5 {[%clk 0:00:03]} 0-1


[Site "https://www.chess.com"]

[Event "Titled Tuesday Blitz August 15 Late 2023"]
[White "Tqebuchava, Zurab"]
[Black "Kielinkei"]
[WhiteFideId "13601113"]
[WhiteElo "2179"]
[BlackElo "2390"]
[Result "0-1"]
[Round "9"]
[TimeControl "180+1"]
[Date "2023.08.15"]
[WhiteClock "0:00:00"]
[BlackClock "0:00:24"]
[Board "98"]

1. e4 {[%clk 0:03:00]}  d6 {[%clk 0:02:59]} 2. d4 {[%clk 0:02:54]}  Nf6 {[%clk 0:02:59]} 3. Nc3 {[%clk 0:02:54]}  g6 {[%clk 0:03:00]} 4. g3 {[%clk 0:02:55]}  Bg7 {[%clk 0:03:00]} 5. Bg2 {[%clk 0:02:55]}  O-O {[%clk 0:03:00]} 6. Nge2 {[%clk 0:02:52]}  e5 {[%clk 0:03:01]} 7. h3 {[%clk 0:02:49]}  Nc6 {[%clk 0:02:59]} 8. Be3 {[%clk 0:02:47]}  exd4 {[%clk 0:02:56]} 9. Nxd4 {[%clk 0:02:46]}  Nxd4 {[%clk 0:02:49]} 10. Bxd4 {[%clk 0:02:43]}  c6 {[%clk 0:02:38]} 11. O-O {[%clk 0:02:40]}  Qc7 {[%clk 0:02:38]} 12. Qf3 {[%clk 0:02:30]}  Nd7 {[%clk 0:02:34]} 13. Bxg7 {[%clk 0:02:26]}  Kxg7 {[%clk 0:02:34]} 14. Rad1 {[%clk 0:02:19]}  Ne5 {[%clk 0:02:30]} 15. Qe3 {[%clk 0:02:16]}  Qb6 {[%clk 0:02:21]} 16. Qxb6 {[%clk 0:02:11]}  axb6 {[%clk 0:02:21]} 17. b3 {[%clk 0:02:02]}  Be6 {[%clk 0:01:58]} 18. Rxd6 {[%clk 0:01:49]}  Rfd8 {[%clk 0:01:57]} 19. Rfd1 {[%clk 0:01:39]}  Rxd6 {[%clk 0:01:57]} 20. Rxd6 {[%clk 0:01:39]}  Kf8 {[%clk 0:01:58]} 21. f4 {[%clk 0:01:14]}  Nd7 {[%clk 0:01:57]} 22. Rd4 {[%clk 0:01:02]}  b5 {[%clk 0:01:50]} 23. g4 {[%clk 0:00:59]}  Nb6 {[%clk 0:01:47]} 24. f5 {[%clk 0:00:53]}  Bd7 {[%clk 0:01:46]} 25. Kf2 {[%clk 0:00:43]}  Ke7 {[%clk 0:01:45]} 26. a4 {[%clk 0:00:30]}  bxa4 {[%clk 0:01:41]} 27. Nxa4 {[%clk 0:00:29]}  Nxa4 {[%clk 0:01:39]} 28. Rxa4 {[%clk 0:00:27]}  Rxa4 {[%clk 0:01:36]} 29. bxa4 {[%clk 0:00:28]}  b6 {[%clk 0:01:36]} 30. Ke3 {[%clk 0:00:28]}  c5 {[%clk 0:01:36]} 31. c3 {[%clk 0:00:16]}  Bxa4 {[%clk 0:01:36]} 32. e5 {[%clk 0:00:16]}  Bd7 {[%clk 0:01:29]} 33. Kf4 {[%clk 0:00:15]}  h6 {[%clk 0:01:16]} 34. Bd5 {[%clk 0:00:11]}  b5 {[%clk 0:01:02]} 35. h4 {[%clk 0:00:10]}  b4 {[%clk 0:00:58]} 36. f6+ {[%clk 0:00:09]}  Ke8 {[%clk 0:00:48]} 37. cxb4 {[%clk 0:00:10]}  cxb4 {[%clk 0:00:48]} 38. Ke3 {[%clk 0:00:09]}  Bxg4 {[%clk 0:00:42]} 39. Kd4 {[%clk 0:00:09]}  Be6 {[%clk 0:00:39]} 40. Be4 {[%clk 0:00:06]}  g5 {[%clk 0:00:31]} 41. hxg5 {[%clk 0:00:05]}  hxg5 {[%clk 0:00:32]} 42. Kc5 {[%clk 0:00:04]}  b3 {[%clk 0:00:32]} 43. Kb4 {[%clk 0:00:04]}  Kd7 {[%clk 0:00:29]} 44. Kc3 {[%clk 0:00:03]}  Kc7 {[%clk 0:00:29]} 45. Bh7 {[%clk 0:00:02]}  Kc6 {[%clk 0:00:27]} 46. Be4+ {[%clk 0:00:02]}  Kc5 {[%clk 0:00:28]} 47. Bh7 {[%clk 0:00:02]}  g4 {[%clk 0:00:27]} 48. Be4 {[%clk 0:00:03]}  g3 {[%clk 0:00:27]} 49. Bf3 {[%clk 0:00:03]}  Kb5 {[%clk 0:00:23]} 50. Bg2 {[%clk 0:00:03]}  Ka4 {[%clk 0:00:23]} 51. Kb2 {[%clk 0:00:03]}  Kb4 {[%clk 0:00:23]} 52. Bf3 {[%clk 0:00:03]}  Kc4 {[%clk 0:00:23]} 53. Bg2 {[%clk 0:00:03]}  Kd4 {[%clk 0:00:24]} 54. Bc6 {[%clk 0:00:02]}  Kxe5 {[%clk 0:00:24]} 55. Be8 {[%clk 0:00:00]}  Kxf6 {[%clk 0:00:24]} 0-1


[Site "https://www.chess.com"]

[Event "Titled Tuesday Blitz August 15 Late 2023"]
[White "Harish, Neeraj"]
[Black "Ottosen, David"]
[WhiteFideId "30958130"]
[BlackFideId "2603080"]
[WhiteElo "2324"]
[BlackElo "2135"]
[Result "1-0"]
[Round "9"]
[TimeControl "180+1"]
[Date "2023.08.15"]
[WhiteClock "0:01:55"]
[BlackClock "0:00:32"]
[Board "101"]

1. e4 {[%clk 0:03:00]}  e6 {[%clk 0:02:58]} 2. d4 {[%clk 0:03:00]}  d5 {[%clk 0:02:59]} 3. e5 {[%clk 0:03:01]}  c5 {[%clk 0:02:59]} 4. c3 {[%clk 0:03:01]}  Nc6 {[%clk 0:02:59]} 5. Nf3 {[%clk 0:03:02]}  Bd7 {[%clk 0:03:00]} 6. Bd3 {[%clk 0:03:02]}  f6 {[%clk 0:03:01]} 7. exf6 {[%clk 0:02:58]}  Qxf6 {[%clk 0:03:01]} 8. O-O {[%clk 0:02:56]}  Bd6 {[%clk 0:03:01]} 9. Na3 {[%clk 0:02:55]}  a6 {[%clk 0:03:00]} 10. Bg5 {[%clk 0:02:55]}  Qf7 {[%clk 0:03:00]} 11. Nc2 {[%clk 0:02:54]}  Nge7 {[%clk 0:03:00]} 12. Re1 {[%clk 0:02:53]}  O-O {[%clk 0:03:00]} 13. Qd2 {[%clk 0:02:53]}  Qh5 {[%clk 0:02:52]} 14. Ne5 {[%clk 0:02:46]}  Bxe5 {[%clk 0:02:24]} 15. dxe5 {[%clk 0:02:40]}  h6 {[%clk 0:02:18]} 16. Bf4 {[%clk 0:02:40]}  Rf7 {[%clk 0:02:12]} 17. Bg3 {[%clk 0:02:38]}  Nf5 {[%clk 0:02:11]} 18. c4 {[%clk 0:02:37]}  Nxg3 {[%clk 0:02:10]} 19. hxg3 {[%clk 0:02:38]}  Nxe5 {[%clk 0:01:58]} 20. cxd5 {[%clk 0:02:34]}  Nxd3 {[%clk 0:01:57]} 21. Qxd3 {[%clk 0:02:34]}  exd5 {[%clk 0:01:56]} 22. Ne3 {[%clk 0:02:33]}  d4 {[%clk 0:01:54]} 23. Nc4 {[%clk 0:02:32]}  Bc6 {[%clk 0:01:47]} 24. Ne5 {[%clk 0:02:30]}  Rc7 {[%clk 0:01:38]} 25. Qb3+ {[%clk 0:02:20]}  Kh7 {[%clk 0:01:28]} 26. Nxc6 {[%clk 0:02:20]}  bxc6 {[%clk 0:01:25]} 27. Qd3+ {[%clk 0:02:18]}  Qg6 {[%clk 0:01:21]} 28. Qc4 {[%clk 0:02:15]}  Qd6 {[%clk 0:01:19]} 29. Rac1 {[%clk 0:02:15]}  d3 {[%clk 0:01:09]} 30. Qxc5 {[%clk 0:02:11]}  Qxc5 {[%clk 0:01:09]} 31. Rxc5 {[%clk 0:02:12]}  Rb8 {[%clk 0:00:56]} 32. b3 {[%clk 0:02:10]}  Rb5 {[%clk 0:00:51]} 33. Rc3 {[%clk 0:02:08]}  Rd5 {[%clk 0:00:50]} 34. Rd1 {[%clk 0:02:07]}  Re7 {[%clk 0:00:42]} 35. Rcxd3 {[%clk 0:02:04]}  Rxd3 {[%clk 0:00:41]} 36. Rxd3 {[%clk 0:02:05]}  Re2 {[%clk 0:00:42]} 37. a4 {[%clk 0:02:01]}  Rb2 {[%clk 0:00:42]} 38. Rc3 {[%clk 0:02:00]}  Kg8 {[%clk 0:00:40]} 39. Rxc6 {[%clk 0:02:00]}  Rxb3 {[%clk 0:00:40]} 40. Rxa6 {[%clk 0:02:00]}  Ra3 {[%clk 0:00:40]} 41. Ra7 {[%clk 0:02:01]}  Kh7 {[%clk 0:00:39]} 42. g4 {[%clk 0:02:00]}  Kg6 {[%clk 0:00:40]} 43. f3 {[%clk 0:02:00]}  Kf6 {[%clk 0:00:39]} 44. Kh2 {[%clk 0:02:01]}  g5 {[%clk 0:00:39]} 45. Ra6+ {[%clk 0:01:59]}  Ke5 {[%clk 0:00:38]} 46. Kg3 {[%clk 0:01:55]}  Ra2 {[%clk 0:00:35]} 47. Rxh6 {[%clk 0:01:54]}  Rxa4 {[%clk 0:00:32]} 48. Rg6 {[%clk 0:01:55]} 1-0


[Site "https://www.chess.com"]